fUST/lending_fUST_20241006
["ID","MTS","AMOUNT","RATE_DAILY","PERIOD"]
[339919492,1728153038839,-3577.44318041,0.00013678,2]
[339919493,1728153038848,-46824.9744488,0.00013678,2]
[339919494,1728153038857,-3577.44318041,0.00013688,2]
[339919495,1728153038866,-46824.9744488,0.00013688,2]
[339919496,1728153038876,-394.015887,0.00013688,2]
[339919497,1728153038887,-394.015887,0.00013688,2]
[339919498,1728153038896,-151.0,0.00013688,2]
[339919499,1728153038906,-702.516553,0.00013688,2]
[339919500,1728153038917,-151.0,0.00013688,2]
[339919501,1728153038927,-702.516553,0.00013688,2]
[339919502,1728153038936,-151.0,0.00013688,2]
[339919503,1728153038947,-151.0,0.00013688,2]
[339919504,1728153038959,-231.782617,0.00013688,2]
[339919505,1728153038969,-231.782617,0.00013688,2]
[339919506,1728153038979,-151.0,0.00013688,2]
[339919507,1728153038991,-151.0,0.00013688,2]
[339919508,1728153039002,-39351.8749845,0.00013688,2]
[339919509,1728153039013,-93649.9488975,0.00013688,2]
[339919510,1728153039023,-3577.44318041,0.00013689,2]
[339919511,1728153039035,-24812.43066689,0.00013698,2]
[339919512,1728153039045,-6314.26374293,0.00013698,2]
[339919513,1728153039057,-151.0,0.00013698,2]
[339919514,1728153039067,-151.0,0.00013698,2]
[339919515,1728153039076,-151.0,0.00013698,2]
[339919516,1728153039085,-151.0,0.00013698,2]
[339919517,1728153039095,-151.0,0.00013698,2]
[339919518,1728153039105,-151.0,0.00013698,2]
[339919519,1728153039114,-151.0,0.00013698,2]
[339919520,1728153039124,-500.0,0.00013698,2]
[339919521,1728153039133,-500.0,0.00013698,2]
[339919522,1728153039142,-500.18244805,0.00013698,2]
[339919523,1728153039151,-151.0,0.00013698,2]
[339919524,1728153039161,-151.0,0.00013698,2]
[339919525,1728153039170,-500.0,0.00013698,2]
[339919526,1728153039180,-500.0,0.00013698,2]
[339919527,1728153039189,-561.83,0.00013698,2]
[339919528,1728153039199,-500.0,0.00013698,2]
[339919529,1728153039208,-500.0,0.00013698,2]
[339919530,1728153039218,-500.0,0.00013698,2]
[339919531,1728153039228,-884.75,0.00013698,2]
[339919532,1728153039239,-500.0,0.00013698,2]
[339919533,1728153039249,-500.0,0.00013698,2]
[339919534,1728153039258,-501.28879768,0.00013698,2]
[339919535,1728153039268,-662.92,0.00013698,2]
[339919536,1728153039277,-151.0,0.00013698,2]
[339919537,1728153039287,-151.0,0.00013698,2]
[339919538,1728153039298,-500.0,0.00013698,2]
[339919539,1728153039307,-500.0,0.00013698,2]
[339919540,1728153039317,-151.0,0.00013698,2]
[339919541,1728153039326,-500.0,0.00013698,2]
[339919542,1728153039335,-500.0,0.00013698,2]
[339919543,1728153039343,-521.54055168,0.00013698,2]
[339919544,1728153039353,-624.94,0.00013698,2]
[339919545,1728153039362,-500.0,0.00013698,2]
[339919546,1728153039372,-500.0,0.00013698,2]
[339919547,1728153039381,-500.0,0.00013698,2]
[339919548,1728153039390,-342.47973228,0.00013698,2]
[339919549,1728153039400,-500.0,0.00013698,2]
[339919550,1728153039409,-500.0,0.00013698,2]
[339919551,1728153039418,-500.0,0.00013698,2]
[339919552,1728153039427,-500.0,0.00013698,2]
[339919553,1728153039440,-500.0,0.00013698,2]
[339919554,1728153039449,-500.0,0.00013698,2]
[339919555,1728153039458,-543.45,0.00013698,2]
[339919556,1728153039468,-542.81,0.00013698,2]
[339919557,1728153039479,-151.0,0.00013698,2]
[339919558,1728153039488,-151.0,0.00013698,2]
[339919559,1728153039497,-500.0,0.00013698,2]
[339919560,1728153039507,-500.0,0.00013698,2]
[339919561,1728153039519,-707.19,0.00013698,2]
[339919562,1728153039528,-500.0,0.00013698,2]
[339919563,1728153039537,-614.8,0.00013698,2]
[339919564,1728153039546,-500.0,0.00013698,2]
[339919566,1728153039555,-500.0,0.00013698,2]
[339919568,1728153039564,-500.0,0.00013698,2]
[339919570,1728153039574,-500.0,0.00013698,2]
[339919571,1728153039582,-500.0,0.00013698,2]
[339919573,1728153039592,-500.0,0.00013698,2]
[339919575,1728153039601,-500.0,0.00013698,2]
[339919577,1728153039610,-500.0,0.00013698,2]
[339919578,1728153039620,-500.0,0.00013698,2]
[339919579,1728153039629,-500.0,0.00013698,2]
[339919580,1728153039639,-500.0,0.00013698,2]
[339919581,1728153039648,-500.0,0.00013698,2]
[339919582,1728153039658,-792.29,0.00013698,2]
[339919584,1728153039667,-500.0,0.00013698,2]
[339919585,1728153039676,-500.0,0.00013698,2]
[339919586,1728153039685,-151.0,0.00013698,2]
[339919587,1728153039695,-500.0,0.00013698,2]
[339919588,1728153039704,-150.0,0.00013698,2]
[339919589,1728153039713,-212.4,0.00013698,2]
[339919590,1728153039722,-500.0,0.00013698,2]
[339919591,1728153039731,-500.0,0.00013698,2]
[339919592,1728153039740,-500.0,0.00013698,2]
[339919593,1728153039750,-500.0,0.00013698,2]
[339919595,1728153039759,-330.85576591,0.00013698,2]
[339919596,1728153039768,-500.0,0.00013698,2]
[339919597,1728153039778,-500.0,0.00013698,2]
[339919598,1728153039787,-500.0,0.00013698,2]
[339919599,1728153039796,-500.0,0.00013698,2]
[339919600,1728153039806,-500.0,0.00013698,2]
[339919601,1728153039815,-151.0,0.00013698,2]
[339919602,1728153039823,-151.0,0.00013698,2]
[339919606,1728153040006,-500.0,0.00013698,2]
[339919607,1728153040015,-346.97403089,0.00013698,2]
[339919608,1728153040025,-500.0,0.00013698,2]
[339919609,1728153040034,-91.72125637,0.00013698,2]
[339919610,1728153040053,-408.27874363,0.00013698,2]
[339919611,1728153040063,-500.0,0.00013698,2]
[339919612,1728153040073,-500.0,0.00013698,2]
[339919613,1728153040082,-29.07536723,0.00013698,2]
[339919614,1728153040420,-234.362674,0.00013688,2]
[339919615,1728153040430,-785.96463277,0.00013698,2]
[339919616,1728153040445,-500.0,0.00013698,2]
[339919617,1728153040457,-500.0,0.00013698,2]
[339919618,1728153040468,-500.0,0.00013698,2]
[339919619,1728153040479,-1352.01,0.00013698,2]
[339919620,1728153040491,-565.64,0.00013698,2]
[339919621,1728153040503,-500.0,0.00013698,2]
[339919622,1728153040514,-553.64,0.00013698,2]
[339919623,1728153040525,-151.0,0.00013698,2]
[339919624,1728153040535,-151.0,0.00013698,2]
[339919625,1728153040547,-151.0,0.00013698,2]
[339919626,1728153040560,-151.0,0.00013698,2]
[339919627,1728153040572,-500.0,0.00013698,2]
[339919628,1728153040583,-500.0,0.00013698,2]
[339919629,1728153040594,-428.37581366,0.00013698,2]
[339919630,1728153040606,-500.0,0.00013698,2]
[339919631,1728153040618,-126.05883355,0.00013698,2]
[339919632,1728153040632,-373.94116645,0.00013698,2]
[339919633,1728153040642,-500.0,0.00013698,2]
[339919634,1728153040651,-151.0,0.00013698,2]
[339919635,1728153040661,-500.0,0.00013698,2]
[339919636,1728153040672,-500.0,0.00013698,2]
[339919637,1728153040681,-500.0,0.00013698,2]
[339919638,1728153040690,-1492.98,0.00013698,2]
[339919639,1728153040699,-500.0,0.00013698,2]
[339919640,1728153040708,-169.66,0.00013698,2]
[339919641,1728153040717,-500.0,0.00013698,2]
[339919642,1728153040727,-500.0,0.00013698,2]
[339919643,1728153040737,-500.0,0.00013698,2]
[339919644,1728153040748,-500.0,0.00013698,2]
[339919645,1728153040759,-500.0,0.00013698,2]
[339919646,1728153040771,-151.0,0.00013698,2]
[339919647,1728153040781,-151.0,0.00013698,2]
[339919648,1728153040792,-151.0,0.00013698,2]
[339919649,1728153040801,-151.0,0.00013698,2]
[339919650,1728153040812,-450.43230421,0.00013698,2]
[339919651,1728153040824,-151.0,0.00013698,2]
[339919652,1728153040836,-500.0,0.00013698,2]
[339919653,1728153040847,-169.687658,0.00013698,2]
[339919654,1728153040858,-500.0,0.00013698,2]
[339919655,1728153040868,-524.39918398,0.00013698,2]
[339919656,1728153040879,-500.0,0.00013698,2]
[339919657,1728153040888,-500.0,0.00013698,2]
[339919658,1728153040898,-628.08879222,0.00013698,2]
[339919659,1728153040909,-500.0,0.00013698,2]
[339919660,1728153040920,-500.0,0.00013698,2]
[339919661,1728153040930,-500.0,0.00013698,2]
[339919662,1728153040942,-500.0,0.00013698,2]
[339919663,1728153040952,-500.0,0.00013698,2]
[339919664,1728153040962,-500.0,0.00013698,2]
[339919665,1728153040973,-500.0,0.00013698,2]
[339919666,1728153040984,-88.04887166,0.00013698,2]
[339919667,1728153041001,-411.95112834,0.00013698,2]
[339919668,1728153041012,-203.95887166,0.00013698,2]
[339919695,1728153043111,-311.93,0.00010959,2]
[339919696,1728153043124,-151.0,0.00013688,2]
[339919697,1728153043135,-234.362674,0.00013688,2]
[339919698,1728153043146,-151.90778,0.00013688,2]
[339919699,1728153043157,-296.04112834,0.00013698,2]
[339919700,1728153043167,-500.0,0.00013698,2]
[339919701,1728153043177,-673.19,0.00013698,2]
[339919702,1728153043189,-643.08,0.00013698,2]
[339919703,1728153043199,-500.0,0.00013698,2]
[339919704,1728153043209,-500.0,0.00013698,2]
[339919705,1728153043218,-500.0,0.00013698,2]
[339919706,1728153043228,-500.0,0.00013698,2]
[339919707,1728153043238,-500.0,0.00013698,2]
[339919708,1728153043248,-500.0,0.00013698,2]
[339919709,1728153043260,-151.0,0.00013698,2]
[339919710,1728153043269,-151.0,0.00013698,2]
[339919711,1728153043281,-500.0,0.00013698,2]
[339919712,1728153043290,-500.0,0.00013698,2]
[339919713,1728153043302,-151.0,0.00013698,2]
[339919714,1728153043311,-500.0,0.00013698,2]
[339919715,1728153043321,-500.0,0.00013698,2]
[339919716,1728153043330,-295.34558,0.00013698,2]
[339919717,1728153043341,-210.4522997,0.00013698,2]
[339919718,1728153043356,-289.5477003,0.00013698,2]
[339919719,1728153043367,-930.43,0.00013698,2]
[339919720,1728153043378,-396.49470663,0.00013698,2]
[339919721,1728153043392,-103.50529337,0.00013698,2]
[339919722,1728153043402,-152.451266,0.00013698,2]
[339919723,1728153043411,-50.29143045,0.00013698,2]
[339919768,1728153046121,-449.70856955,0.00013698,2]
[339919769,1728153046132,-264.56516427,0.00013698,2]
[339919770,1728153046145,-235.43483573,0.00013698,2]
[339919771,1728153046155,-500.0,0.00013698,2]
[339919772,1728153046164,-500.0,0.00013698,2]
[339919773,1728153046175,-500.0,0.00013698,2]
[339919774,1728153046184,-500.0,0.00013698,2]
[339919775,1728153046193,-500.0,0.00013698,2]
[339919776,1728153046203,-411.640964,0.00013698,2]
[339919777,1728153046213,-229.27074951,0.00013698,2]
[339919778,1728153046225,-270.72925049,0.00013698,2]
[339919779,1728153046236,-411.640964,0.00013698,2]
[339919780,1728153046246,-411.640964,0.00013698,2]
[339919781,1728153046257,-500.0,0.00013698,2]
[339919782,1728153046267,-411.640964,0.00013698,2]
[339919783,1728153046277,-411.640964,0.00013698,2]
[339919784,1728153046288,-500.0,0.00013698,2]
[339919785,1728153046299,-411.640964,0.00013698,2]
[339919786,1728153046309,-124.69049272,0.00013698,2]
[339919787,1728153046329,-375.30950728,0.00013698,2]
[339919788,1728153046339,-500.0,0.00013698,2]
[339919789,1728153046348,-500.0,0.00013698,2]
[339919790,1728153046360,-500.0,0.00013698,2]
[339919791,1728153046369,-297.99360266,0.00013698,2]
[339919854,1728154232261,-300.0,0.00010958,2]
[339919855,1728154232271,-289.46,0.00010959,2]
[339919856,1728154232281,-241.22,0.00010959,2]
[339919857,1728154232291,-300.0,0.00011638,2]
[339919858,1728154232303,-5340.7201949,0.00011639,2]
[339919859,1728154232315,-1572.9109774,0.00011967,2]
[339919860,1728154232326,-463.75282,0.00012,2]
[339919861,1728154232336,-420.0,0.00012054,2]
[339919862,1728154232348,-250.0,0.00012084,2]
[339919863,1728154232359,-250.0,0.00012117,2]
[339919864,1728154232372,-250.0,0.0001215,2]
[339919865,1728154232383,-250.0,0.00012183,2]
[339919866,1728154232392,-250.0,0.00012216,2]
[339919867,1728154232402,-250.0,0.0001225,2]
[339919868,1728154232411,-33.8647746,0.00012283,2]
[339919898,1728154238265,-216.1352254,0.00012283,2]
[339919900,1728154238274,-250.0,0.00012316,2]
[339919902,1728154238284,-250.0,0.00012349,2]
[339919904,1728154238293,-250.0,0.00012382,2]
[339919906,1728154238304,-250.0,0.00012415,2]
[339919907,1728154238313,-250.0,0.00012448,2]
[339919909,1728154238324,-33.8647746,0.00012482,2]
[339919971,1728154240402,-201.01,0.00010959,2]
[339919972,1728154240410,-216.1352254,0.00012482,2]
[339919974,1728154240422,-250.0,0.00012515,2]
[339919975,1728154240432,-250.0,0.00012548,2]
[339919976,1728154240441,-250.0,0.00012581,2]
[339919977,1728154240452,-250.0,0.00012614,2]
[339919978,1728154240463,-250.0,0.00012647,2]
[339919979,1728154240474,-250.0,0.00012681,2]
[339919980,1728154240483,-250.0,0.00012714,2]
[339919981,1728154240493,-420.0,0.0001278,2]
[339919982,1728154240503,-1200.0,0.0001278,2]
[339919983,1728154240516,-153.0,0.00012978,2]
[339919984,1728154240528,-209.5952082,0.00012978,2]
[339919985,1728154240539,-209.5952082,0.00012978,2]
[339919986,1728154240550,-209.5952082,0.00012978,2]
[339919987,1728154240559,-209.5952082,0.00012978,2]
[339919988,1728154240569,-209.5952082,0.00012978,2]
[339919989,1728154240579,-511.6449749,0.00012978,2]
[339919990,1728154240590,-1863.361836,0.00013205,2]
[339919991,1728154240601,-206.0,0.00013259,2]
[339919992,1728154240612,-500.0,0.00013431,2]
[339919993,1728154240622,-6361.50823219,0.00013498,2]
[339919994,1728154240633,-977.36000136,0.00013498,2]
[339919995,1728154240642,-4678.47955139,0.000135,2]
[339919996,1728154240653,-7196.86532819,0.00013539,2]
[339919997,1728154240664,-179.54147111,0.00013573,2]
[339919998,1728154240675,-1000.0,0.00013588,2]
[339919999,1728154240684,-194.08780366,0.00013597,2]
[339920000,1728154240695,-500.0,0.000136,2]
[339920001,1728154240706,-541.77939229,0.000136,2]
[339920002,1728154240718,-150.448302,0.000136,2]
[339920003,1728154240728,-5000.0,0.000136,2]
[339920004,1728154240738,-500.0,0.00013673,2]
[339920005,1728154240751,-500.0,0.00013673,2]
[339920006,1728154240762,-500.0,0.00013673,2]
[339920007,1728154240771,-500.0,0.00013673,2]
[339920008,1728154240781,-500.0,0.00013673,2]
[339920009,1728154240791,-500.0,0.00013673,2]
[339920010,1728154240800,-500.0,0.00013673,2]
[339920011,1728154240810,-161.2711602,0.00013673,2]
[339920012,1728154240819,-500.0,0.00013673,2]
[339920013,1728154240829,-500.0,0.00013673,2]
[339920014,1728154240841,-500.0,0.00013673,2]
[339920015,1728154240852,-299.68773763,0.00013673,2]
[339920016,1728154240862,-500.0,0.00013673,2]
[339920017,1728154240874,-500.0,0.00013673,2]
[339920018,1728154240885,-167.5,0.00013673,2]
[339920019,1728154240896,-165.98135536,0.00013673,2]
[339920020,1728154240907,-168.96,0.00013673,2]
[339920021,1728154240918,-199.44814758,0.00013673,2]
[339920022,1728154240928,-500.0,0.00013673,2]
[339920023,1728154240940,-167.5,0.00013673,2]
[339920024,1728154241110,-369.96,0.00013673,2]
[339920025,1728154241122,-183.63078667,0.00013673,2]
[339920026,1728154241131,-500.0,0.00013673,2]
[339920027,1728154241142,-500.0,0.00013673,2]
[339920028,1728154241153,-548.83407114,0.00013673,2]
[339920029,1728154241164,-500.0,0.00013673,2]
[339920030,1728154241174,-500.0,0.00013673,2]
[339920031,1728154241185,-167.5,0.00013673,2]
[339920032,1728154241195,-500.0,0.00013673,2]
[339920033,1728154241206,-500.0,0.00013673,2]
[339920034,1728154241220,-500.0,0.00013673,2]
[339920035,1728154241230,-500.0,0.00013673,2]
[339920036,1728154241240,-160.962,0.00013673,2]
[339920037,1728154241250,-500.0,0.00013673,2]
[339920038,1728154241261,-500.0,0.00013673,2]
[339920039,1728154241272,-500.17479855,0.00013673,2]
[339920040,1728154241281,-16512.1821225,0.00013678,2]
[339920041,1728154241291,-30505.0780621,0.00013678,2]
[339920042,1728154241300,-16512.1821225,0.00013688,2]
[339920043,1728154241310,-30505.0780621,0.00013688,2]
[339920044,1728154241319,-151.0,0.00013688,2]
[339920045,1728154241328,-3554.07512869,0.00013688,2]
[339920046,1728154241341,-178079.92821831,0.00013688,2]
[339920047,1728154241351,-59289.92191702,0.00013688,2]
[339920048,1728154241365,-154245.62451798,0.00013688,2]
[339920049,1728154241375,-400.0,0.0001369,2]
[339920050,1728154241386,-34860.4585921,0.00013698,2]
[339920051,1728154241397,-11480.47922531,0.00013698,2]
[339920052,1728154241407,-151.0,0.00013698,2]
[339920053,1728154241417,-151.0,0.00013698,2]
[339920054,1728154241429,-158.072273,0.00013698,2]
[339920055,1728154241439,-151.0,0.00013698,2]
[339920056,1728154241449,-151.0,0.00013698,2]
[339920057,1728154241460,-500.0,0.00013698,2]
[339920058,1728154241469,-500.0,0.00013698,2]
[339920059,1728154241479,-151.0,0.00013698,2]
[339920060,1728154241490,-151.0,0.00013698,2]
[339920061,1728154241501,-151.0,0.00013698,2]
[339920062,1728154241512,-151.0,0.00013698,2]
[339920063,1728154241523,-151.0,0.00013698,2]
[339920064,1728154241533,-339.30749644,0.00013698,2]
[339920065,1728154241543,-500.0,0.00013698,2]
[339920066,1728154241555,-500.0,0.00013698,2]
[339920067,1728154241565,-229.37009261,0.00013698,2]
[339920068,1728154241576,-500.0,0.00013698,2]
[339920069,1728154241586,-500.0,0.00013698,2]
[339920070,1728154241596,-500.0,0.00013698,2]
[339920071,1728154241608,-234.51081961,0.00013698,2]
[339920072,1728154241618,-300.0,0.00013698,2]
[339920073,1728154241628,-620.0,0.00013698,2]
[339920074,1728154241637,-500.0,0.00013698,2]
[339920075,1728154241646,-300.0,0.00013698,2]
[339920076,1728154241656,-203.84974549,0.00013698,2]
[339920077,1728154241665,-500.0,0.00013698,2]
[339920078,1728154241674,-500.0,0.00013698,2]
[339920079,1728154241683,-500.0,0.00013698,2]
[339920080,1728154241692,-500.0,0.00013698,2]
[339920081,1728154241701,-500.0,0.00013698,2]
[339920082,1728154241711,-500.0,0.00013698,2]
[339920083,1728154241720,-500.0,0.00013698,2]
[339920084,1728154241729,-500.0,0.00013698,2]
[339920085,1728154241738,-500.0,0.00013698,2]
[339920086,1728154241748,-500.0,0.00013698,2]
[339920087,1728154241758,-500.0,0.00013698,2]
[339920088,1728154241768,-500.0,0.00013698,2]
[339920089,1728154241779,-239.50644244,0.00013698,2]
[339920090,1728154241789,-500.0,0.00013698,2]
[339920091,1728154241800,-612.86530975,0.00013698,2]
[339920092,1728154241813,-500.0,0.00013698,2]
[339920093,1728154241823,-608.7805547,0.00013698,2]
[339920094,1728154241835,-500.0,0.00013698,2]
[339920095,1728154241846,-268.14875251,0.00013698,2]
[339920096,1728154241858,-500.0,0.00013698,2]
[339920097,1728154241869,-535.80311244,0.00013698,2]
[339920098,1728154241879,-500.0,0.00013698,2]
[339920099,1728154241889,-620.0,0.00013698,2]
[339920100,1728154241899,-500.0,0.00013698,2]
[339920101,1728154241909,-500.0,0.00013698,2]
[339920102,1728154241918,-238.88510142,0.00013698,2]
[339920103,1728154241927,-222.82555176,0.00013698,2]
[339920104,1728154241936,-500.0,0.00013698,2]
[339920105,1728154241945,-500.0,0.00013698,2]
[339920106,1728154241954,-500.0,0.00013698,2]
[339920107,1728154241963,-500.0,0.00013698,2]
[339920108,1728154241972,-500.0,0.00013698,2]
[339920109,1728154241982,-500.0,0.00013698,2]
[339920110,1728154241991,-500.0,0.00013698,2]
[339920111,1728154242001,-500.0,0.00013698,2]
[339920112,1728154242010,-500.0,0.00013698,2]
[339920113,1728154242019,-500.0,0.00013698,2]
[339920114,1728154242029,-305.16009794,0.00013698,2]
[339920115,1728154242039,-500.0,0.00013698,2]
[339920116,1728154242047,-500.0,0.00013698,2]
[339920117,1728154242056,-500.0,0.00013698,2]
[339920118,1728154242065,-500.0,0.00013698,2]
[339920119,1728154242074,-500.0,0.00013698,2]
[339920120,1728154242083,-500.0,0.00013698,2]
[339920121,1728154242093,-500.0,0.00013698,2]
[339920122,1728154242101,-500.0,0.00013698,2]
[339920123,1728154242111,-500.0,0.00013698,2]
[339920124,1728154242119,-500.0,0.00013698,2]
[339920125,1728154242129,-500.0,0.00013698,2]
[339920126,1728154242138,-500.0,0.00013698,2]
[339920127,1728154242147,-500.0,0.00013698,2]
[339920128,1728154242156,-500.0,0.00013698,2]
[339920129,1728154242165,-390.0,0.00013698,2]
[339920130,1728154242174,-500.0,0.00013698,2]
[339920131,1728154242183,-500.0,0.00013698,2]
[339920132,1728154242193,-500.0,0.00013698,2]
[339920133,1728154242201,-500.0,0.00013698,2]
[339920134,1728154242210,-500.0,0.00013698,2]
[339920135,1728154242219,-500.0,0.00013698,2]
[339920136,1728154242228,-158.37530782,0.00013698,2]
[339920137,1728154242237,-500.0,0.00013698,2]
[339920138,1728154242247,-500.0,0.00013698,2]
[339920139,1728154242256,-500.0,0.00013698,2]
[339920140,1728154242266,-500.0,0.00013698,2]
[339920141,1728154242275,-500.0,0.00013698,2]
[339920142,1728154242284,-500.0,0.00013698,2]
[339920143,1728154242293,-500.0,0.00013698,2]
[339920144,1728154242301,-500.0,0.00013698,2]
[339920145,1728154242310,-500.0,0.00013698,2]
[339920146,1728154242319,-500.0,0.00013698,2]
[339920147,1728154242329,-500.0,0.00013698,2]
[339920148,1728154242338,-500.0,0.00013698,2]
[339920149,1728154242347,-500.0,0.00013698,2]
[339920150,1728154242357,-500.0,0.00013698,2]
[339920151,1728154242366,-648.57725127,0.00013698,2]
[339920152,1728154242376,-500.0,0.00013698,2]
[339920153,1728154242385,-500.0,0.00013698,2]
[339920154,1728154242394,-500.0,0.00013698,2]
[339920155,1728154242403,-500.0,0.00013698,2]
[339920156,1728154242413,-500.0,0.00013698,2]
[339920157,1728154242422,-500.0,0.00013698,2]
[339920158,1728154242432,-500.0,0.00013698,2]
[339920159,1728154242441,-500.0,0.00013698,2]
[339920160,1728154242450,-500.0,0.00013698,2]
[339920161,1728154242460,-500.0,0.00013698,2]
[339920162,1728154242469,-500.0,0.00013698,2]
[339920163,1728154242478,-500.0,0.00013698,2]
[339920164,1728154242487,-500.0,0.00013698,2]
[339920165,1728154242497,-500.0,0.00013698,2]
[339920166,1728154242506,-500.0,0.00013698,2]
[339920167,1728154242515,-380.0,0.00013698,2]
[339920168,1728154242524,-500.0,0.00013698,2]
[339920169,1728154242534,-500.0,0.00013698,2]
[339920170,1728154242543,-500.0,0.00013698,2]
[339920171,1728154242553,-500.0,0.00013698,2]
[339920172,1728154242563,-500.0,0.00013698,2]
[339920173,1728154242572,-500.0,0.00013698,2]
[339920174,1728154242582,-500.0,0.00013698,2]
[339920175,1728154242591,-500.0,0.00013698,2]
[339920176,1728154242600,-500.0,0.00013698,2]
[339920177,1728154242610,-500.0,0.00013698,2]
[339920178,1728154242619,-500.0,0.00013698,2]
[339920179,1728154242628,-510.0,0.00013698,2]
[339920180,1728154242638,-500.0,0.00013698,2]
[339920181,1728154242647,-500.0,0.00013698,2]
[339920182,1728154242657,-500.0,0.00013698,2]
[339920183,1728154242666,-151.0,0.00013698,2]
[339920184,1728154242675,-500.0,0.00013698,2]
[339920185,1728154242686,-500.0,0.00013698,2]
[339920186,1728154242695,-500.0,0.00013698,2]
[339920187,1728154242705,-595.06,0.00013698,2]
[339920188,1728154242715,-500.0,0.00013698,2]
[339920189,1728154242724,-500.0,0.00013698,2]
[339920190,1728154242734,-500.0,0.00013698,2]
[339920192,1728154242743,-707.91,0.00013698,2]
[339920194,1728154242752,-151.0,0.00013698,2]
[339920195,1728154242761,-151.0,0.00013698,2]
[339920196,1728154242770,-151.0,0.00013698,2]
[339920198,1728154242779,-500.0,0.00013698,2]
[339920199,1728154242788,-500.0,0.00013698,2]
[339920200,1728154242798,-500.0,0.00013698,2]
[339920201,1728154242815,-500.0,0.00013698,2]
[339920202,1728154242825,-500.0,0.00013698,2]
[339920203,1728154242834,-532.58,0.00013698,2]
[339920204,1728154242843,-500.0,0.00013698,2]
[339920205,1728154242852,-500.0,0.00013698,2]
[339920206,1728154242861,-500.0,0.00013698,2]
[339920207,1728154242870,-702.92,0.00013698,2]
[339920208,1728154242879,-500.0,0.00013698,2]
[339920209,1728154242888,-747.02,0.00013698,2]
[339920210,1728154242898,-500.0,0.00013698,2]
[339920212,1728154242907,-151.0,0.00013698,2]
[339920213,1728154242916,-151.0,0.00013698,2]
[339920214,1728154242925,-500.0,0.00013698,2]
[339920215,1728154242934,-151.0,0.00013698,2]
[339920216,1728154242944,-500.0,0.00013698,2]
[339920218,1728154242954,-500.0,0.00013698,2]
[339920219,1728154242963,-500.0,0.00013698,2]
[339920220,1728154242973,-500.0,0.00013698,2]
[339920221,1728154242983,-500.0,0.00013698,2]
[339920222,1728154242992,-500.0,0.00013698,2]
[339920223,1728154243001,-220.65822766,0.00013698,2]
[339920224,1728154243011,-240.51556576,0.00013698,2]
[339920225,1728154243020,-500.0,0.00013698,2]
[339920226,1728154243029,-500.0,0.00013698,2]
[339920227,1728154243038,-500.0,0.00013698,2]
[339920228,1728154243047,-500.0,0.00013698,2]
[339920229,1728154243060,-500.0,0.00013698,2]
[339920230,1728154243069,-500.0,0.00013698,2]
[339920231,1728154243080,-500.0,0.00013698,2]
[339920233,1728154243090,-500.0,0.00013698,2]
[339920235,1728154243099,-500.0,0.00013698,2]
[339920236,1728154243109,-500.0,0.00013698,2]
[339920238,1728154243119,-500.0,0.00013698,2]